bitfinex/quotes_BTCUSD_20250108
["timestamp","ask_amount","ask_price","bid_price","bid_amount"]
[1736343721222,0.209751,95351.0,95348.0,0.0766]
[1736343721462,0.209755,95349.0,95348.0,0.0766]
[1736343721699,0.31405476,95349.0,95348.0,0.08879]
[1736343722419,0.31405476,95349.0,95348.0,0.0766]
[1736343723030,0.37197476,95349.0,95348.0,0.0766]
[1736343723253,0.10429976,95349.0,95348.0,0.0766]
[1736343723436,0.05892,95349.0,95348.0,0.0766]
[1736343723860,0.16921976,95349.0,95348.0,0.0766]
[1736343724273,0.17021976,95349.0,95348.0,0.0766]
[1736343724473,0.17021976,95349.0,95348.0,0.08879]
[1736343725203,0.11229976,95349.0,95348.0,0.08879]
[1736343725404,0.16321976,95349.0,95348.0,0.08879]
[1736343725641,0.06392,95349.0,95348.0,0.08879]
[1736343725860,0.06492,95349.0,95348.0,0.08879]
[1736343726037,0.05892,95349.0,95348.0,0.08879]
[1736343726292,0.003,95349.0,95348.0,0.23849]
[1736343726468,0.003,95349.0,95348.0,0.13849]
[1736343726696,0.003,95349.0,95348.0,0.349247]
[1736343727322,0.10729976,95349.0,95348.0,0.34776595]
[1736343727501,0.10729976,95349.0,95348.0,0.1273]
[1736343728371,0.003,95349.0,95348.0,0.1273]
[1736343730452,0.10729976,95349.0,95348.0,0.337057]
[1736343730667,0.10729976,95349.0,95348.0,0.39278484]
[1736343731291,0.10729976,95349.0,95348.0,0.1273]
[1736343731882,0.10729976,95349.0,95348.0,0.337057]
[1736343732150,0.003,95349.0,95348.0,0.337057]
[1736343733661,0.209674,95387.0,95370.0,0.1282]
[1736343733662,0.209685,95382.0,95370.0,0.1282]
[1736343733781,0.00015263,95375.0,95371.0,0.209707]
[1736343733990,0.00015263,95375.0,95372.0,0.08840492]
[1736343734200,0.00015263,95375.0,95373.0,0.209702]
[1736343735034,0.00015263,95375.0,95374.0,0.07854834]
[1736343735446,0.00615263,95375.0,95374.0,0.07854834]
[1736343735653,0.00015263,95375.0,95374.0,0.08561346]
[1736343735861,0.209626,95408.0,95382.0,0.209683]
[1736343736069,0.00028825,95383.0,95382.0,0.289583]
[1736343736272,0.00028825,95383.0,95382.0,0.29663911]
[1736343737862,0.00028825,95383.0,95382.0,0.08695611]
[1736343738388,0.05816825,95383.0,95382.0,0.08695611]
[1736343738587,0.05816825,95383.0,95382.0,0.10506735]
[1736343738909,0.05816825,95383.0,95382.0,0.10606735]
[1736343739626,0.00028825,95383.0,95382.0,0.10606735]
[1736343739831,0.00028825,95383.0,95382.0,0.10711557]
[1736343740238,0.00028825,95383.0,95382.0,0.20711557]
[1736343740447,0.00028825,95383.0,95382.0,0.35606735]
[1736343740652,0.05788,95397.0,95390.0,0.12671218]
[1736343740857,0.05788,95397.0,95396.0,0.209652]
[1736343741040,0.2096,95420.0,95398.0,0.209647]
[1736343741279,0.05788,95402.0,95400.0,0.285443]
[1736343741409,0.05788,95405.0,95400.0,0.285443]
[1736343741608,0.05788,95405.0,95400.0,0.29247884]
[1736343742009,0.05788,95407.0,95406.0,0.209628]
[1736343742228,0.05788,95407.0,95406.0,0.2427817]
[1736343742428,0.00011748,95420.0,95417.0,0.209605]
[1736343742631,0.00011748,95420.0,95419.0,0.332701]
[1736343742854,0.05799748,95420.0,95419.0,0.332701]
[1736343743118,0.05799748,95420.0,95419.0,0.33971546]
[1736343743334,0.00011748,95420.0,95419.0,0.39464751]
[1736343744736,0.00011748,95420.0,95419.0,0.18504651]
[1736343745187,0.00811748,95420.0,95419.0,0.18504651]
[1736343745357,0.00811748,95420.0,95419.0,0.19574021]
[1736343745518,0.01011748,95420.0,95419.0,0.19574021]
[1736343745953,0.00011748,95420.0,95419.0,0.19678813]
[1736343746139,0.00011748,95420.0,95419.0,0.34678813]
[1736343746347,0.00111748,95420.0,95419.0,0.54674021]
[1736343746770,0.00011748,95420.0,95419.0,0.54674021]
[1736343746978,0.00011748,95420.0,95419.0,0.14180816]
[1736343747195,0.00011748,95420.0,95419.0,0.14385598]
[1736343747607,0.00011748,95420.0,95419.0,0.14285598]
[1736343747972,0.00011748,95420.0,95419.0,0.24485598]
[1736343748173,0.00011748,95420.0,95419.0,0.24556177]
[1736343748403,0.00011748,95420.0,95419.0,0.49765575]
[1736343751646,0.00011748,95420.0,95419.0,0.59765575]
[1736343754407,0.00011748,95420.0,95419.0,0.59565575]
[1736343754811,0.00011748,95420.0,95419.0,0.59865575]
[1736343755017,0.00011748,95420.0,95419.0,0.59765575]
[1736343755389,0.00111748,95420.0,95419.0,0.40265575]
[1736343756348,0.00111748,95420.0,95419.0,0.30056177]
[1736343757254,0.00111748,95420.0,95419.0,0.40056177]
[1736343757613,0.000171,95438.0,95419.0,0.40056177]
[1736343757614,0.000171,95438.0,95437.0,0.559562]
[1736343757823,0.000171,95438.0,95437.0,0.78906176]
[1736343758020,0.0001708,95448.0,95442.0,0.35]
[1736343758255,0.0001704,95448.0,95447.0,0.4257]
[1736343758475,0.000171,95476.0,95447.0,0.4257]
[1736343758476,0.0001704,95451.0,95450.0,0.35]
[1736343758690,0.000171,95476.0,95456.0,0.35]
[1736343758900,0.000171,95476.0,95468.0,0.559494]
[1736343759104,0.00067999,95469.0,95468.0,0.559494]
[1736343759319,0.00067999,95469.0,95468.0,0.64634711]
[1736343759499,0.00067999,95469.0,95468.0,0.52123861]
[1736343759856,0.00067999,95469.0,95468.0,0.42123861]
[1736343760493,0.00067999,95469.0,95468.0,0.27123861]
[1736343760670,0.10497975,95469.0,95468.0,0.00869917]
[1736343761019,0.10497975,95469.0,95456.0,0.003]
[1736343761227,0.05847999,95469.0,95468.0,0.003]
[1736343761938,0.10497975,95469.0,95468.0,0.0077326]
[1736343762140,0.16377975,95469.0,95468.0,0.006]
[1736343762376,0.16377975,95469.0,95468.0,0.007]
[1736343762583,0.16277975,95469.0,95468.0,0.001]
[1736343762792,0.16277975,95469.0,95456.0,0.01071472]
[1736343762999,0.31379376,95468.0,95456.0,0.01071472]
[1736343763203,0.52328776,95468.0,95453.0,0.209525]
[1736343763409,0.52328776,95468.0,95450.0,0.00045047]
[1736343763410,0.209505,95464.0,95450.0,0.00045047]
[1736343763612,0.31380476,95463.0,95450.0,0.00045047]
[1736343764218,0.31380476,95463.0,95450.0,0.01118147]
[1736343764219,0.209516,95458.0,95450.0,0.01118147]
[1736343764407,0.209526,95454.0,95450.0,0.00045047]
[1736343764771,0.10429976,95453.0,95450.0,0.00045047]
[1736343764971,0.209529,95452.0,95450.0,0.00145047]
[1736343765180,0.10429976,95451.0,95450.0,0.00145047]
[1736343765596,0.10429976,95451.0,95450.0,0.00245047]
[1736343765789,0.10429976,95451.0,95450.0,0.00145047]
[1736343766213,0.12729976,95451.0,95450.0,0.00145047]
[1736343767293,0.12729976,95451.0,95450.0,0.00045047]
[1736343767451,0.12829976,95451.0,95450.0,0.00045047]
[1736343767855,0.13229976,95451.0,95450.0,0.00045047]
[1736343768057,0.12729976,95451.0,95450.0,0.00045047]
[1736343768259,0.27929976,95451.0,95450.0,0.00045047]
[1736343768668,0.28429976,95451.0,95450.0,0.00145047]
[1736343769500,0.33709976,95451.0,95450.0,0.00045047]
[1736343769705,0.10629976,95451.0,95450.0,0.00045047]
[1736343769983,0.11529976,95451.0,95450.0,0.02244972]
[1736343770273,0.11529976,95451.0,95450.0,0.00145047]
[1736343770483,0.11329976,95451.0,95450.0,0.00145047]
[1736343770692,0.11329976,95451.0,95450.0,0.00245047]
[1736343770693,0.11829976,95451.0,95450.0,0.00245047]
[1736343771097,0.10929976,95451.0,95450.0,0.00145047]
[1736343771326,0.10429976,95451.0,95450.0,0.02154982]
[1736343771534,0.10929976,95451.0,95450.0,0.03030491]
[1736343771735,0.16809976,95451.0,95450.0,0.00920556]
[1736343771875,0.16809976,95451.0,95450.0,0.00145047]
[1736343773764,0.16809976,95451.0,95450.0,0.00843005]
[1736343773960,0.11029976,95451.0,95450.0,0.00145047]
[1736343774181,0.11029976,95451.0,95450.0,0.0504836]
[1736343774392,0.11029976,95451.0,95450.0,0.04350402]
[1736343774600,0.11029976,95451.0,95450.0,0.0504836]
[1736343775882,0.11029976,95451.0,95450.0,0.00145047]
[1736343776643,0.11029976,95451.0,95450.0,0.00843005]
[1736343778250,0.11029976,95451.0,95450.0,0.00145047]
[1736343780168,0.11029976,95451.0,95450.0,0.00843005]
[1736343780373,0.11029976,95451.0,95450.0,0.00145047]
[1736343783119,0.16805976,95451.0,95450.0,0.00145047]
[1736343783881,0.11029976,95451.0,95450.0,0.00145047]
[1736343783999,0.16805976,95451.0,95450.0,0.00145047]
[1736343784207,0.16805976,95451.0,95450.0,0.02254952]
[1736343784449,0.16805976,95451.0,95450.0,0.0295291]
[1736343785064,0.16805976,95451.0,95450.0,0.001]
[1736343785472,0.16805976,95451.0,95450.0,0.3818]
[1736343785473,0.006,95451.0,95450.0,0.3818]
[1736343785666,0.006,95451.0,95450.0,0.38877958]
[1736343786048,0.006,95451.0,95450.0,0.48877958]
[1736343786242,0.00067999,95469.0,95468.0,0.1]
[1736343786527,0.00067999,95469.0,95468.0,0.209494]
[1736343786733,0.00067999,95469.0,95468.0,0.21645334]
[1736343787743,0.10497975,95469.0,95468.0,0.00695934]
[1736343787950,0.16273975,95469.0,95468.0,0.00695934]
[1736343788092,0.16273975,95469.0,95458.0,0.209516]
[1736343788295,0.10429976,95468.0,95459.0,0.0697415]
[1736343788547,0.10429976,95468.0,95460.0,0.209511]
[1736343789205,0.10429976,95468.0,95458.0,0.209516]
[1736343789938,0.10629976,95468.0,95462.0,0.209506]
[1736343790361,0.10629976,95468.0,95467.0,0.209496]
[1736343790570,0.16405976,95468.0,95467.0,0.209496]
[1736343790788,0.002,95468.0,95467.0,0.2513962]
[1736343791160,0.00067999,95469.0,95467.0,0.2513962]
[1736343791393,0.00067999,95469.0,95467.0,0.209496]
[1736343792017,0.002,95468.0,95467.0,0.209496]
[1736343792592,0.00067999,95469.0,95467.0,0.213496]
[1736343792795,0.10429976,95468.0,95467.0,0.008]
[1736343793208,0.10429976,95468.0,95467.0,0.004]
[1736343794497,0.10429976,95468.0,95467.0,0.007]
[1736343794868,0.10429976,95468.0,95467.0,0.004]
[1736343795327,0.10529976,95468.0,95467.0,0.004]
[1736343795907,0.10429976,95468.0,95467.0,0.004]
[1736343796117,0.10729976,95468.0,95467.0,0.004]
[1736343797557,0.10729976,95468.0,95460.0,0.20951]
[1736343797759,0.10729976,95468.0,95462.0,0.209507]
[1736343797962,0.10729976,95468.0,95467.0,0.002]
[1736343798361,0.10729976,95468.0,95467.0,0.00696046]
[1736343798770,0.10529976,95468.0,95462.0,0.209507]
[1736343798982,0.10529976,95468.0,95467.0,0.00696046]
[1736343799183,0.003,95468.0,95467.0,0.04689301]
[1736343799388,0.00067999,95469.0,95468.0,0.209494]
[1736343799815,0.00067999,95469.0,95468.0,0.21645334]
[1736343799987,0.10497975,95469.0,95468.0,0.00695934]
[1736343800817,0.16273975,95469.0,95468.0,0.00695934]
[1736343801019,0.16273975,95469.0,95468.0,0.03300084]
[1736343801224,0.16273975,95469.0,95468.0,0.00695934]
[1736343801432,0.10497975,95469.0,95457.0,0.209517]
[1736343801636,0.31379376,95468.0,95458.0,0.209516]
[1736343802063,0.52328776,95468.0,95454.0,0.209524]
[1736343802617,0.31379376,95468.0,95454.0,0.209524]
[1736343802831,0.10429976,95468.0,95458.0,0.209514]
[1736343803042,0.05843999,95469.0,95458.0,0.209514]
[1736343803189,0.16273975,95469.0,95463.0,0.209504]
[1736343803398,0.10829976,95468.0,95458.0,0.209514]
[1736343803600,0.10429976,95468.0,95458.0,0.209514]
[1736343803813,0.10429976,95468.0,95458.0,0.25691563]
[1736343803980,0.10829976,95468.0,95458.0,0.209514]
[1736343804410,0.10829976,95468.0,95455.0,0.0549853]
[1736343804610,0.10829976,95468.0,95456.0,0.20952]
[1736343805042,0.10829976,95468.0,95456.0,0.41904]
[1736343805286,0.10929976,95468.0,95450.0,0.01073063]
[1736343805493,0.209521,95456.0,95446.0,0.01063293]
[1736343805702,0.10429976,95455.0,95446.0,0.01063293]
[1736343805906,0.10429976,95455.0,95446.0,0.00887566]
[1736343806120,0.10429976,95455.0,95447.0,0.20954]
[1736343806329,0.10429976,95455.0,95449.0,0.209535]
[1736343806555,0.10429976,95455.0,95446.0,0.00887566]
[1736343806763,0.10429976,95455.0,95447.0,0.04852672]
[1736343807216,0.209525,95454.0,95447.0,0.04852672]
[1736343807424,0.10429976,95453.0,95447.0,0.04852672]
[1736343808082,0.10429976,95453.0,95448.0,0.209538]
[1736343808530,0.10429976,95453.0,95449.0,0.001]
[1736343808739,0.10429976,95453.0,95450.0,0.02783926]
[1736343808952,0.10429976,95453.0,95451.0,0.209531]
[1736343809175,0.05772,95462.0,95450.0,0.02783926]
[1736343809383,0.002,95453.0,95452.0,0.209529]
[1736343809591,0.05772,95462.0,95452.0,0.209529]
[1736343809797,0.10429976,95461.0,95453.0,0.05043026]
[1736343810210,0.31381076,95461.0,95453.0,0.05043026]
[1736343810413,0.209519,95457.0,95454.0,0.00697508]
[1736343810629,0.10429976,95456.0,95447.0,0.25806672]
[1736343810871,0.10429976,95456.0,95455.0,0.00697395]
[1736343811073,0.10429976,95456.0,95447.0,0.25806672]
[1736343811279,0.10429976,95456.0,95455.0,0.00697395]
[1736343811605,0.10429976,95456.0,95447.0,0.25806672]
[1736343811817,0.10429976,95456.0,95449.0,0.209535]
[1736343812217,0.10429976,95456.0,95450.0,0.00697958]
[1736343812431,0.10429976,95456.0,95452.0,0.003]
[1736343812630,0.10429976,95456.0,95453.0,0.209527]
[1736343812832,0.10429976,95456.0,95452.0,0.003]
[1736343813037,0.10429976,95456.0,95451.0,0.00897845]
[1736343813038,0.10429976,95456.0,95454.0,0.209525]
[1736343813245,0.05772,95455.0,95454.0,0.209525]
[1736343813448,0.004,95456.0,95455.0,0.00697395]
[1736343813650,0.001,95456.0,95455.0,0.00802138]
[1736343813856,0.001,95456.0,95455.0,0.00104743]
[1736343814073,0.05772,95464.0,95456.0,0.20952]
[1736343814278,0.10429976,95463.0,95456.0,0.20952]
[1736343814491,0.10429976,95463.0,95457.0,0.00697171]
[1736343814695,0.10429976,95463.0,95457.0,0.05980729]
[1736343815123,0.10429976,95463.0,95457.0,0.00697171]
[1736343815298,0.10429976,95463.0,95454.0,0.0754]
[1736343815564,0.10429976,95463.0,95458.0,0.00697058]
[1736343815764,0.10429976,95463.0,95455.0,0.209522]
[1736343816145,0.10429976,95463.0,95456.0,0.00697283]
[1736343816355,0.10429976,95463.0,95457.0,0.04557535]
[1736343816562,0.31480476,95463.0,95456.0,0.00697283]
[1736343816764,0.31480476,95463.0,95458.0,0.00697058]
[1736343816974,0.10529976,95463.0,95457.0,0.00697171]
[1736343817189,0.10929976,95463.0,95459.0,0.00696946]
[1736343817389,0.10929976,95463.0,95454.0,0.21996395]
[1736343817390,0.10829976,95463.0,95460.0,0.02538702]
[1736343817571,0.10429976,95463.0,95460.0,0.03235535]
[1736343817734,0.10829976,95463.0,95460.0,0.03235535]
[1736343817938,0.10429976,95463.0,95460.0,0.03235535]
[1736343818600,0.10529976,95463.0,95460.0,0.03235535]
[1736343818804,0.10529976,95463.0,95461.0,0.02523193]
[1736343819379,0.10929976,95463.0,95461.0,0.02523193]
[1736343819548,0.10429976,95463.0,95461.0,0.02523193]
[1736343819953,0.10529976,95463.0,95461.0,0.02523193]
[1736343820614,0.10529976,95463.0,95455.0,0.209522]
[1736343821022,0.10529976,95463.0,95456.0,0.00697283]
[1736343821986,0.209507,95462.0,95456.0,0.00697283]
[1736343822308,0.209525,95454.0,95443.0,0.0771]
[1736343822508,0.10429976,95453.0,95442.0,0.209551]
[1736343822753,0.10429976,95453.0,95448.0,0.209538]
[1736343822936,0.001,95463.0,95448.0,0.209538]
[1736343823101,0.10429976,95462.0,95454.0,0.209523]
[1736343824537,0.10729976,95462.0,95454.0,0.209523]
[1736343825382,0.10829976,95462.0,95454.0,0.209523]
[1736343825589,0.10829976,95462.0,95455.0,0.04887935]
[1736343826090,0.31780676,95462.0,95455.0,0.04887935]
[1736343826291,0.31480676,95462.0,95455.0,0.04887935]
[1736343826755,0.31680676,95462.0,95455.0,0.04887935]
[1736343826898,0.10829976,95462.0,95455.0,0.00697395]
[1736343827113,0.209516,95458.0,95443.0,0.23528071]
[1736343827324,0.31381776,95457.0,95456.0,0.00697283]
[1736343827531,0.31381776,95457.0,95443.0,0.23528071]
[1736343827706,0.31381776,95457.0,95456.0,0.00697283]
[1736343827920,0.31381776,95457.0,95445.0,0.209544]
[1736343828134,0.31381776,95457.0,95456.0,0.00697283]
[1736343828361,0.31381776,95457.0,95446.0,0.00104759]
[1736343828779,0.31381776,95457.0,95447.0,0.00698295]
[1736343828998,0.31381776,95457.0,95448.0,0.05255885]
[1736343829219,0.31381776,95457.0,95449.0,0.0069807]
[1736343830251,0.31481776,95457.0,95449.0,0.0069807]
[1736343830731,0.31381776,95457.0,95449.0,0.0069807]
[1736343830888,0.31481776,95457.0,95449.0,0.0069807]
[1736343831099,0.41904,95456.0,95449.0,0.0069807]
[1736343831340,0.209533,95450.0,95443.0,0.01034742]
[1736343831532,0.10429976,95449.0,95435.0,0.2282]
[1736343831866,0.209538,95448.0,95435.0,0.0782]
[1736343832065,0.10429976,95447.0,95438.0,0.209559]
[1736343833477,0.10429976,95447.0,95442.0,0.02882351]
[1736343833655,0.20952,95457.0,95444.0,0.209546]
[1736343833839,0.10429976,95456.0,95446.0,0.20954]
[1736343835408,0.05772,95455.0,95446.0,0.20954]
[1736343835616,0.10429976,95454.0,95446.0,0.20954]
[1736343835818,0.10429976,95454.0,95447.0,0.04611207]
[1736343836070,0.10429976,95454.0,95442.0,0.04055864]
[1736343836273,0.209547,95444.0,95442.0,0.001]
[1736343836482,0.10429976,95443.0,95442.0,0.001]
[1736343839727,0.10429976,95443.0,95442.0,0.002]
[1736343842877,0.15359976,95443.0,95442.0,0.002]
[1736343843724,0.15359976,95443.0,95442.0,0.001]
[1736343844112,0.16059976,95443.0,95442.0,0.002]
[1736343845637,0.16059976,95443.0,95442.0,0.001]
[1736343846097,0.16259976,95443.0,95442.0,0.001]
[1736343848409,0.11329976,95443.0,95442.0,0.001]
[1736343851855,0.17101976,95443.0,95442.0,0.001]
[1736343853494,0.41682641,95443.0,95442.0,0.001]
[1736343853693,0.34401976,95443.0,95442.0,0.001]
[1736343856215,0.44401976,95443.0,95442.0,0.001]
[1736343856423,0.44401976,95443.0,95389.0,0.209666]
[1736343856424,0.209617,95412.0,95395.0,0.0783]
[1736343856627,0.37163676,95412.0,95395.0,0.0783]
[1736343860316,0.37863676,95412.0,95411.0,0.0011704]
[1736343861874,0.38063676,95412.0,95411.0,0.0011704]
[1736343862073,0.40195587,95412.0,95411.0,0.0011704]
[1736343862464,0.38063676,95412.0,95411.0,0.0011704]
[1736343863660,0.37363676,95412.0,95411.0,0.0001704]
[1736343864065,0.37863676,95412.0,95411.0,0.0011704]
[1736343867718,0.37663676,95412.0,95411.0,0.0011704]
[1736343868368,0.37763676,95412.0,95411.0,0.0011704]
[1736343869931,0.31991676,95412.0,95411.0,0.0011704]
[1736343870132,0.11029976,95412.0,95411.0,0.0777704]
[1736343870336,0.16797976,95412.0,95411.0,0.11528957]
[1736343870728,0.16797976,95412.0,95411.0,0.0777704]
[1736343871165,0.16797976,95412.0,95411.0,0.08654973]
[1736343872003,0.16697976,95412.0,95411.0,0.08654973]
[1736343872208,0.16197976,95412.0,95411.0,0.0767704]
[1736343872592,0.16497976,95412.0,95411.0,0.0767704]
[1736343872802,0.16497976,95412.0,95411.0,0.08554973]
[1736343873003,0.16497976,95412.0,95411.0,0.11610617]
[1736343873435,0.16497976,95412.0,95411.0,0.08554973]
[1736343873621,0.16397976,95412.0,95411.0,0.0767704]
[1736343877572,0.16397976,95412.0,95411.0,0.08554973]
[1736343877772,0.16397976,95412.0,95411.0,0.0767704]
[1736343879453,0.16397976,95412.0,95411.0,0.0001704]
[1736343885174,0.16385367,95412.0,95411.0,0.0001704]
[1736343886259,0.18441625,95412.0,95411.0,0.0001704]
[1736343887685,0.16385367,95412.0,95411.0,0.0001704]
[1736343893992,0.16185367,95412.0,95411.0,0.0001704]
[1736343894551,0.16885367,95412.0,95411.0,0.0011704]
[1736343894764,0.17085367,95412.0,95411.0,0.0011704]
[1736343898489,0.11317367,95412.0,95411.0,0.0794704]
[1736343898693,0.17085367,95412.0,95411.0,0.0794704]
[1736343898893,0.17085367,95412.0,95411.0,0.0011704]
[1736343899097,0.17085367,95412.0,95411.0,0.00893744]
[1736343899869,0.17085367,95412.0,95411.0,0.0011704]
[1736343901046,0.17085367,95412.0,95411.0,0.0461704]
[1736343902416,0.16385367,95412.0,95411.0,0.0451704]
[1736343902761,0.16785367,95412.0,95411.0,0.0451704]
[1736343903178,0.11017367,95412.0,95411.0,0.1267704]
[1736343903386,0.06364,95412.0,95411.0,0.18147725]
[1736343903593,0.006,95412.0,95411.0,0.18971567]
[1736343903809,0.006,95412.0,95411.0,0.19076366]
[1736343904022,0.006,95412.0,95411.0,0.3407635]
[1736343904227,0.05764,95426.0,95425.0,0.1274]
[1736343904434,0.16193976,95426.0,95425.0,0.14014]
[1736343904631,0.16193976,95426.0,95425.0,0.14835873]
[1736343905042,0.05764,95426.0,95425.0,0.14835873]
[1736343906537,0.05764,95426.0,95425.0,0.14935873]
[1736343907327,0.16193976,95426.0,95425.0,0.13661873]
[1736343908137,0.16193976,95426.0,95425.0,0.13561873]
[1736343908351,0.16193976,95426.0,95425.0,0.08781873]
[1736343908566,0.16193976,95426.0,95425.0,0.0796]
[1736343908770,0.16193976,95426.0,95425.0,0.0905583]
[1736343909005,0.16193976,95426.0,95425.0,0.0915583]
[1736343909220,0.16193976,95426.0,95425.0,0.0109583]
[1736343909441,0.209617,95412.0,95411.0,0.0001704]
[1736343909614,0.31391676,95412.0,95411.0,0.0001704]
[1736343909821,0.31391676,95412.0,95411.0,0.01115496]
[1736343910032,0.31391676,95412.0,95411.0,0.0001704]
[1736343913544,0.31491676,95412.0,95411.0,0.0001704]
[1736343913994,0.31891676,95412.0,95411.0,0.0001704]
[1736343914129,0.31491676,95412.0,95411.0,0.0001704]
[1736343914567,0.37655676,95412.0,95411.0,0.0001704]
[1736343914999,0.37555676,95412.0,95411.0,0.0001704]
[1736343915210,0.37655676,95412.0,95411.0,0.0001704]
[1736343916047,0.37555676,95412.0,95411.0,0.0001704]
[1736343916442,0.37155676,95412.0,95411.0,0.0001704]
[1736343916635,0.39955676,95412.0,95411.0,0.0001704]
[1736343917203,0.39555676,95412.0,95411.0,0.0001704]
[1736343917571,0.39955676,95412.0,95411.0,0.0001704]
[1736343918769,0.41003026,95412.0,95411.0,0.0001704]
[1736343918983,0.39955676,95412.0,95411.0,0.0001704]
[1736343919597,0.39855676,95412.0,95411.0,0.0001704]
[1736343920756,0.37655676,95412.0,95411.0,0.0001704]
[1736343921609,0.39955676,95412.0,95411.0,0.0001704]
[1736343922818,0.47735676,95412.0,95411.0,0.0001704]
[1736343923024,0.39955676,95412.0,95411.0,0.0001704]
[1736343923861,0.34191676,95412.0,95411.0,0.0001704]
[1736343924060,0.39959676,95412.0,95411.0,0.0001704]
[1736343924282,0.39859676,95412.0,95411.0,0.0001704]
[1736343924499,0.31391676,95412.0,95411.0,0.0001704]
[1736343924709,0.37159676,95412.0,95411.0,0.0001704]
[1736343925341,0.37459676,95412.0,95411.0,0.0001704]
[1736343925733,0.38359676,95412.0,95411.0,0.0011704]
[1736343926149,0.37459676,95412.0,95411.0,0.0001704]
[1736343926364,0.37959676,95412.0,95411.0,0.0001704]
[1736343926582,0.37459676,95412.0,95411.0,0.0001704]
[1736343927120,0.37959676,95412.0,95411.0,0.0001704]
[1736343930173,0.37659676,95412.0,95411.0,0.0001704]
[1736343930855,0.37859676,95412.0,95411.0,0.0001704]
[1736343931268,0.11129976,95412.0,95411.0,0.0001704]
[1736343931484,0.16689976,95412.0,95411.0,0.10849054]
[1736343931690,0.16689976,95412.0,95411.0,0.11686105]
[1736343932270,0.15732,95441.0,95426.0,0.209584]
[1736343932494,0.10429976,95434.0,95428.0,0.0474]
[1736343932708,0.0576,95433.0,95428.0,0.0474]
[1736343932914,0.10429976,95432.0,95429.0,0.06422217]
[1736343934706,0.0576,95431.0,95429.0,0.06422217]
[1736343934926,0.10429976,95430.0,95429.0,0.00834518]
[1736343937427,0.10429976,95430.0,95428.0,0.0474]
[1736343937623,0.10429976,95430.0,95429.0,0.00834518]
[1736343938147,0.0576,95431.0,95429.0,0.00834518]
[1736343938148,0.209537,95449.0,95429.0,0.00834518]
[1736343938333,0.0576,95435.0,95431.0,0.0776]
[1736343938531,0.10429976,95434.0,95432.0,0.00834096]
[1736343939357,0.10429976,95434.0,95432.0,0.02272097]
[1736343940011,0.0576,95433.0,95432.0,0.02272097]
[1736343940235,0.16189976,95433.0,95432.0,0.02272097]
[1736343940737,0.16189976,95433.0,95432.0,0.00834096]
[1736343941153,0.16189976,95433.0,95431.0,0.0776]
[1736343941304,0.10429976,95432.0,95431.0,0.0776]
[1736343943050,0.10629976,95432.0,95431.0,0.0776]
[1736343945587,0.10629976,95432.0,95420.0,0.0777]
[1736343945789,0.10429976,95431.0,95420.0,0.09019]
[1736343946197,0.209592,95424.0,95420.0,0.09019]
[1736343946436,0.209595,95422.0,95420.0,0.09019]
[1736343946658,0.10429976,95421.0,95420.0,0.09019]
[1736343950034,0.10429976,95421.0,95420.0,0.09219]
[1736343950853,0.209611,95415.0,95413.0,0.082]
[1736343951062,0.10429976,95414.0,95413.0,0.082]
[1736343951469,0.10429976,95414.0,95411.0,0.0001704]
[1736343951470,0.209615,95413.0,95411.0,0.0001704]
[1736343951678,0.40029976,95412.0,95411.0,4e-07]
[1736343951878,0.40029976,95412.0,95384.0,0.28032454]
[1736343951879,0.359656,95394.0,95384.0,0.28032454]
[1736343952082,0.59635576,95394.0,95384.0,0.28032454]
[1736343952293,0.69635576,95394.0,95393.0,0.00503915]
[1736343952500,0.69635576,95394.0,95393.0,0.00011748]
[1736343952699,0.81687687,95394.0,95393.0,4.8e-07]
[1736343952917,0.93155124,95394.0,95393.0,4.8e-07]
[1736343953080,0.82725148,95394.0,95393.0,4.8e-07]
[1736343953279,0.359685,95381.0,95380.0,0.0001706]
[1736343953489,0.54458476,95381.0,95380.0,0.0001706]
[1736343954986,0.55358476,95381.0,95380.0,0.0011706]
[1736343955879,0.55758476,95381.0,95380.0,0.0011706]
[1736343956932,0.54858476,95381.0,95380.0,0.0001706]
[1736343957144,0.55758476,95381.0,95380.0,0.0011706]
[1736343957575,0.49998476,95381.0,95380.0,0.0011706]
[1736343957793,0.38458476,95381.0,95380.0,0.0011706]
[1736343960376,0.32698476,95381.0,95380.0,0.0011706]
[1736343960617,0.38458476,95381.0,95380.0,0.0011706]
[1736343960814,0.38058476,95381.0,95380.0,0.0011706]
[1736343961024,0.37558476,95381.0,95380.0,0.0001706]
[1736343961392,0.38458476,95381.0,95380.0,0.0011706]
[1736343963870,0.17489976,95381.0,95380.0,0.0011706]
[1736343964064,0.17489976,95381.0,95380.0,0.1226706]
[1736343964277,0.17489976,95381.0,95380.0,0.15590746]
[1736343964624,0.17489976,95381.0,95380.0,0.14907894]
[1736343965266,0.16589976,95381.0,95380.0,0.14807894]
[1736343965448,0.16789976,95381.0,95380.0,0.14807894]
[1736343966179,0.16189976,95381.0,95380.0,0.14807894]
[1736343966384,0.16189976,95381.0,95380.0,0.13747513]
[1736343966624,0.16189976,95381.0,95380.0,0.0762706]
[1736343966836,0.16189976,95381.0,95380.0,0.09654129]
[1736343967042,0.16189976,95381.0,95380.0,0.0762706]
[1736343967217,0.16189976,95381.0,95380.0,0.0001706]
[1736343967646,0.16589976,95381.0,95380.0,0.0001706]
[1736343968042,0.33889976,95381.0,95380.0,0.0001706]
[1736343969835,0.33589976,95381.0,95380.0,0.0001706]
[1736343970258,0.33489976,95381.0,95380.0,0.0001706]
[1736343970653,0.42469976,95381.0,95380.0,0.0011706]
[1736343970860,0.52469976,95381.0,95380.0,6e-07]
[1736343971057,0.64608756,95381.0,95380.0,6e-07]
[1736343971253,0.54608756,95381.0,95380.0,6e-07]
[1736343971715,0.45008756,95381.0,95380.0,6e-07]
[1736343971932,0.36928756,95381.0,95380.0,6e-07]
[1736343972121,0.21928756,95381.0,95380.0,6e-07]
[1736343972524,0.21928756,95381.0,95372.0,0.0001704]
[1736343972525,0.209702,95374.0,95372.0,0.0001704]
[1736343972758,0.10429976,95373.0,95372.0,0.00775744]
[1736343973469,0.10429976,95373.0,95372.0,0.0001704]
[1736343974476,0.10429976,95373.0,95372.0,0.0011704]
[1736343974777,0.17189976,95373.0,95372.0,0.0011704]
[1736343975584,0.17189976,95373.0,95372.0,0.01195421]
[1736343975802,0.0676,95373.0,95372.0,0.01300266]
[1736343976026,0.0676,95373.0,95372.0,0.14561523]
[1736343976232,0.0596,95373.0,95372.0,0.34291523]
[1736343976439,0.00010128,95381.0,95372.0,0.34186678]
[1736343976658,0.00010128,95381.0,95380.0,0.289187]
[1736343977079,0.00010128,95381.0,95380.0,0.29995579]
[1736343977285,0.00010128,95381.0,95380.0,0.38189137]